lending/lending_fUSD_20260104
["ID","MTS","AMOUNT","RATE_DAILY","PERIOD"]
[400427857,1767540037255,-532.7014,0.00015487,2]
[400427858,1767540037325,-300.0,0.00015489,2]
[400427859,1767540037409,-300.0,0.00015489,2]
[400427860,1767540037491,-1200.0,0.00015489,2]
[400427861,1767540037866,-3802.24890776,0.0001549,2]
[400427862,1767540038139,-2395.51218448,0.0001549,2]
[400427863,1767540038218,-204.92923426,0.0001549,2]
[400427864,1767540038297,-250.0,0.000155,2]
[400427865,1767540038372,-195.0,0.00015537,2]
[400427866,1767540038468,-4475.9752,0.00015562,2]
[400427867,1767540038726,-500.0,0.00015579,2]
[400427868,1767540038916,-500.0,0.00015579,2]
[400427869,1767540038993,-500.0,0.00015579,2]
[400427870,1767540039067,-597.7787886,0.00015579,2]
[400427871,1767540039147,-199.1831861,0.00015583,2]
[400427872,1767540039227,-250.59512957,0.00015583,2]
[400427873,1767540039304,-500.0,0.00015583,2]
[400427874,1767540039383,-199.64180892,0.00015583,2]
[400427875,1767540039462,-293.72411947,0.00015583,2]
[400427876,1767540039545,-500.0,0.00015583,2]
[400427877,1767540039624,-500.0,0.00015583,2]
[400427878,1767540039700,-200.5323999,0.00015583,2]
[400427879,1767540039781,-500.0,0.00015583,2]
[400427880,1767540039860,-17.09913488,0.00015583,2]
[400427881,1767540040257,-482.90086512,0.00015583,2]
[400427882,1767540040338,-313.1513291,0.00015583,2]
[400427883,1767540040414,-266.69628261,0.00015583,2]
[400427884,1767540040495,-500.0,0.00015583,2]
[400427885,1767540040577,-456.14070919,0.00015583,2]
[400427886,1767540040656,-1581.58,0.00015584,2]
[400427887,1767540040735,-151.0,0.00015584,2]
[400427888,1767540040808,-151.0,0.00015584,2]
[400427889,1767540040892,-300.0,0.00015585,2]
[400427890,1767540040971,-395.07162796,0.00015585,2]
[400427891,1767540041480,-804.92837204,0.00015585,2]
[400427892,1767540041563,-500.0,0.00015585,2]
[400427893,1767540041644,-500.0,0.00015586,2]
[400427894,1767540041727,-500.0,0.00015586,2]
[400427895,1767540041802,-500.0,0.00015586,2]
[400427896,1767540041879,-500.0,0.00015586,2]
[400427897,1767540041954,-500.0,0.00015586,2]
[400427898,1767540042029,-500.0,0.00015586,2]
[400427899,1767540042106,-252.09027213,0.00015586,2]
[400427900,1767540042189,-385.97271166,0.00015586,2]
[400427901,1767540042438,-114.02728834,0.00015586,2]
[400427902,1767540042514,-500.0,0.00015586,2]
[400427903,1767540042594,-500.0,0.00015586,2]
[400427904,1767540042673,-300.0,0.00015586,2]
[400427905,1767540042749,-500.0,0.00015586,2]
[400427906,1767540042820,-500.0,0.00015586,2]
[400427907,1767540042892,-500.0,0.00015586,2]
[400427908,1767540042963,-500.0,0.00015586,2]
[400427909,1767540043037,-522.96995118,0.00015586,2]
[400427910,1767540043110,-500.0,0.00015586,2]
[400427911,1767540043184,-500.0,0.00015586,2]
[400427912,1767540045496,-131.24535066,0.00015586,2]
[400427913,1767540045579,-368.75464934,0.00015586,2]
[400427914,1767540045592,-131.24535066,0.00015586,2]
[400427915,1767540045669,-368.75464934,0.00015586,2]
[400427916,1767540045681,-131.24535066,0.00015586,2]
[400427917,1767540045755,-252.09027213,0.00015586,2]
[400427918,1767540045820,-121.41905723,0.00015586,2]
[400427919,1767540045831,-250.0,0.00015586,2]
[400427920,1767540045841,-128.58094277,0.00015586,2]
[400427921,1767540045935,-66.41905723,0.00015586,2]
[400427922,1767540045946,-47.60823111,0.00015587,2]
[400427923,1767540046018,-202.39176889,0.00015587,2]
[400427924,1767540052190,955.85167184,0.00015583,2]
[400427925,1767540052291,955.85167184,0.00015583,2]
[400427926,1767540052384,955.85167184,0.00015583,2]
[400427927,1767540052474,955.85167184,0.00015583,2]
[400427928,1767540052565,955.85167184,0.00015583,2]
[400427929,1767540052663,955.85167184,0.00015583,2]
[400427930,1767540052758,955.85167184,0.00015583,2]
[400427931,1767540052849,955.85167184,0.00015583,2]
[400427932,1767540052942,955.85167184,0.00015583,2]
[400427933,1767540053035,955.85167184,0.00015583,2]
[400427934,1767540053139,441.4932816,0.00015583,2]
[400427935,1767540053241,514.35839024,0.00015583,2]
[400427936,1767540053361,955.85167184,0.00015583,2]
[400427937,1767540053475,955.85167184,0.00015583,2]
[400427938,1767540053593,955.85167184,0.00015583,2]
[400427939,1767540053706,955.85167184,0.00015583,2]
[400427940,1767540053821,955.85167184,0.00015583,2]
[400427941,1767540053932,955.85167184,0.00015583,2]
[400427942,1767540054028,955.85167184,0.00015583,2]
[400427943,1767540054131,955.85167184,0.00015583,2]
[400427944,1767540054224,955.85167184,0.00015583,2]
[400427945,1767540054323,882.9865632,0.00015583,2]
[400427946,1767540054413,72.86510864,0.00015583,2]
[400427947,1767540054511,955.85167184,0.00015583,2]
[400427948,1767540054614,955.85167184,0.00015583,2]
[400427949,1767540054702,955.85167184,0.00015583,2]
[400427950,1767540054788,955.85167184,0.00015583,2]
[400427951,1767540054877,955.85167184,0.00015583,2]
[400427952,1767540054962,955.85167184,0.00015583,2]
[400427953,1767540055050,955.85167184,0.00015583,2]
[400427954,1767540055136,955.85167184,0.00015583,2]
[400427955,1767540055221,955.85167184,0.00015583,2]
[400427956,1767540055306,955.85167184,0.00015583,2]
[400427957,1767540055400,368.62817296,0.00015583,2]
[400427958,1767540055479,587.22349888,0.00015583,2]
[400427959,1767540055569,955.85167184,0.00015583,2]
[400427960,1767540055664,955.85167184,0.00015583,2]
[400427961,1767540055762,955.85167184,0.00015583,2]
[400427962,1767540055878,955.85167184,0.00015583,2]
[400427963,1767540055962,500.0,0.00015586,2]
[400427964,1767540056086,955.85167184,0.00015583,2]
[400427965,1767540056194,955.85167184,0.00015583,2]
[400427966,1767540056300,500.0,0.00015586,2]
[400427967,1767540056396,955.85167184,0.00015583,2]
[400427968,1767540056503,955.85167184,0.00015583,2]
[400427969,1767540056612,765.9731264,0.00015583,2]
[400427970,1767540056700,189.87854544,0.00015583,2]
[400427971,1767540056817,955.85167184,0.00015583,2]
[400427972,1767540056921,955.85167184,0.00015583,2]
[400427973,1767540057046,955.85167184,0.00015583,2]
[400427974,1767540057152,955.85167184,0.00015583,2]
[400427975,1767540057379,955.85167184,0.00015583,2]
[400427976,1767540057481,955.85167184,0.00015583,2]
[400427977,1767540057601,955.85167184,0.00015583,2]
[400427978,1767540062425,500.0,0.00015586,2]
[400427979,1767540062642,300.0,0.00015586,2]
[400427980,1767540062717,500.0,0.00015586,2]
[400427981,1767540062985,500.0,0.00015586,2]
[400427982,1767540064044,300.0,0.00015586,2]
[400427983,1767540066951,500.0,0.00015586,2]
[400427984,1767540067229,500.0,0.00015586,2]
[400427985,1767540067524,500.0,0.00015586,2]
[400427986,1767540067684,500.0,0.00015586,2]
[400427987,1767540073239,166.80790393,0.0001549,2]
[400427992,1767540259873,-162.848,0.00015275,2]
[400427993,1767540259947,-1717.587,0.00015275,2]
[400427994,1767540260020,-776.6986,0.00015487,2]
[400427995,1767540260093,-814.53079158,0.00015489,2]
[400427996,1767540269004,-3056.68121684,0.00015489,2]
[400427997,1767540269070,-204.92923424,0.00015489,2]
[400427998,1767540269140,-1200.0,0.00015581,2]
[400427999,1767540269209,-300.0,0.00015581,2]
[400428000,1767540345919,-166.80790393,0.00015489,2]
[400428001,1767540346005,-4086.24503842,0.00015489,2]
[400428002,1767540346599,-1493.9041153,0.00015489,2]
[400428003,1767540346685,-300.0,0.00015581,2]
[400428004,1767540346774,-1200.0,0.00015581,2]
[400428005,1767540346872,-500.0,0.00015583,2]
[400428006,1767540346966,-151.0,0.00015584,2]
[400428007,1767540347051,-500.0,0.00015586,2]
[400428008,1767540347138,-500.0,0.00015586,2]
[400428009,1767540347232,-210.2017694,0.00015586,2]
[400428010,1767540347635,-289.7982306,0.00015586,2]
[400428011,1767540347725,-500.0,0.00015586,2]
[400428012,1767540347809,-500.0,0.00015586,2]
[400428013,1767540347894,-500.0,0.00015586,2]
[400428014,1767540347978,-500.0,0.00015586,2]
[400428015,1767540348072,-500.0,0.00015586,2]
[400428016,1767540348173,-500.0,0.00015586,2]
[400428017,1767540348262,-500.0,0.00015586,2]
[400428018,1767540348348,-500.0,0.00015586,2]
[400428019,1767540348432,-500.0,0.00015586,2]
[400428020,1767540348842,-500.0,0.00015586,2]
[400428021,1767540348936,-500.0,0.00015586,2]
[400428022,1767540349022,-504.23547705,0.00015586,2]
[400428023,1767540349114,-500.0,0.00015586,2]
[400428024,1767540349207,-500.0,0.00015586,2]
[400428025,1767540349303,-500.0,0.00015586,2]
[400428026,1767540349396,-500.0,0.00015586,2]
[400428027,1767540349486,-500.0,0.00015586,2]
[400428028,1767540349581,-500.0,0.00015586,2]
[400428029,1767540349680,-491.5390459,0.00015586,2]
[400428030,1767540350074,-8.4609541,0.00015586,2]
[400428031,1767540350167,-488.74590428,0.00015586,2]
[400428032,1767540356983,204.92923424,0.00015489,2]
[400428033,1767540358695,500.0,0.00015586,2]
[400428034,1767540360619,-200.0,0.00015587,2]
[400428035,1767540360714,-200.0,0.00015587,2]
[400428036,1767540360804,-200.0,0.00015587,2]
[400428037,1767540360894,-151.0,0.00015587,2]
[400428038,1767540360984,-151.0,0.00015587,2]
[400428039,1767540361072,-151.0,0.00015587,2]
[400428040,1767540361157,-151.0,0.00015587,2]
[400428041,1767540361247,-153.70166196,0.00015587,2]
[400428042,1767540361333,-151.0,0.00015587,2]
[400428043,1767540361420,-151.0,0.00015587,2]
[400428044,1767540361508,-151.0,0.00015587,2]
[400428045,1767540361600,-151.0,0.00015587,2]
[400428046,1767540361694,-200.01807784,0.00015587,2]
[400428047,1767540364577,300.0,0.00011,2]
[400428048,1767540375557,-9107.3055207,0.00015587,2]
[400428049,1767540375774,-10000.01,0.00015587,2]
[400428050,1767540382055,-10000.01,0.00015587,2]
[400428051,1767540384369,-10000.01,0.00015587,2]
[400428052,1767540384633,-10000.01,0.00015587,2]
[400428053,1767540385660,1385.6364749,0.00015,2]
[400428054,1767540385695,658.64581117,0.00015,2]
[400428055,1767540407239,920.85260779,0.00013443,2]
[400428057,1767540433732,3684.55516303,0.0001305,2]
[400428058,1767540433756,98.86092206,0.0001305,2]
[400428059,1767540434312,259.34857628,0.000101,2]
[400428060,1767540444658,177.76,0.00012261,2]
[400428061,1767540446182,-438.09983536,0.000153,2]
[400428062,1767540471389,998.13686081,0.00014,2]
[400428063,1767540485210,3729.94722284,0.0001439,2]
[400428064,1767540485240,5264.05358199,0.0001439,2]
[400428065,1767540485264,7.87233436,0.0001439,2]
[400428067,1767540495108,1927.91000596,0.0001,2]
[400428068,1767540497182,390.76805178,7.888e-05,2]
[400428070,1767540498286,2937.50318989,0.00015,2]
[400428071,1767540498311,3004.31386297,0.00015,2]
[400428072,1767540507258,401.20446721,0.00015,2]
[400428073,1767540509225,267.77393416,0.000107,2]
[400428074,1767540511521,1590.76131765,0.00014999,2]
[400428075,1767540511546,3424.15868235,0.00014999,2]
[400428076,1767540529885,1839.89489964,0.00014977,2]
[400428077,1767540529908,12.52510036,0.00014977,2]
[400428078,1767540548565,171.0,9e-07,2]
[400428079,1767540570507,150.0,0.00014973,2]
[400428080,1767540611453,225.67,0.00014891,2]
[400428081,1767540624390,1178.78,0.00014841,2]
[400428082,1767540630483,763.85,0.00014841,2]
[400428092,1767540632183,-1079.54016464,0.000153,2]
[400428093,1767540632194,-277.0,0.000153,2]
[400428094,1767540632205,-177.76,0.00015327,2]
[400428095,1767540632215,-506.76290238,0.000154,2]
[400428096,1767540632225,-2765.23691298,0.00015472,2]
[400428097,1767540632376,-19157.80308702,0.00015472,2]
[400428098,1767540632386,-16489.99336421,0.00015472,2]
[400428099,1767540632399,-5433.04663579,0.00015472,2]
[400428100,1767540632416,-154.72784194,0.00015479,2]
[400428101,1767540632426,-300.0,0.00015481,2]
[400428102,1767540632436,-1200.0,0.00015481,2]
[400428104,1767540632448,-300.0,0.00015481,2]
[400428106,1767540632459,-300.0,0.00015481,2]
[400428108,1767540632469,-3383.19706183,0.00015482,2]
[400428110,1767540632481,-17186.22400548,0.00015482,2]
[400428112,1767540632493,-103414.87130143,0.00015482,2]
[400428115,1767540632505,-2073.29589676,0.00015482,2]
[400428117,1767540632517,-756.71092669,0.00015482,2]
[400428118,1767540632529,-974.17884844,0.00015482,2]
[400428119,1767540632541,-1468.67056078,0.00015482,2]
[400428122,1767540632557,-473.32,0.00015482,2]
[400428124,1767540632571,-1640.59653455,0.00015482,2]
[400428127,1767540632583,-580.36061433,0.00015482,2]
[400428129,1767540632595,-1144.96358765,0.00015482,2]
[400428131,1767540632607,-339.75260614,0.00015482,2]
[400428133,1767540632619,-867.29465335,0.00015482,2]
[400428168,1767540638246,-474.71000045,0.00015482,2]
[400428169,1767540638260,-1377.07327054,0.00015482,2]
[400428171,1767540638272,-7942.50148664,0.00015482,2]
[400428172,1767540638284,-498.98998669,0.00015482,2]
[400428173,1767540638343,-21353.76411447,0.00015482,2]
[400428174,1767540638355,-675.01067611,0.00015482,2]
[400428175,1767540638368,-666.24,0.00015482,2]
[400428176,1767540638379,-7167.08885631,0.00015482,2]
[400428177,1767540638391,-1046.26,0.00015482,2]
[400428178,1767540638459,-631.32,0.00015482,2]
[400428179,1767540638540,-62380.68402102,0.00015482,2]
[400428180,1767540638553,-50685.05391309,0.00015482,2]
[400428181,1767540638566,-25896.73929964,0.00015482,2]
[400428182,1767540638578,-38207.26594154,0.00015482,2]
[400428183,1767540638590,-5851.70200385,0.00015482,2]
[400428184,1767540638604,-10115.66751706,0.00015482,2]
[400428185,1767540638617,-2437.99103874,0.00015482,2]
[400428186,1767540638630,-1887.99999,0.00015482,2]
[400428187,1767540638642,-1931.45747354,0.00015482,2]
[400428189,1767540638655,-2209.98352126,0.00015482,2]
[400428196,1767540640277,-622259.06029162,0.00015482,2]
[400428197,1767540640288,-1200.0,0.00015585,2]
[400428198,1767540640299,-500.0,0.00015585,2]
[400428199,1767540640309,-500.0,0.00015585,2]
[400428200,1767540640319,-500.0,0.00015585,2]
[400428201,1767540640332,-500.0,0.00015585,2]
[400428202,1767540640351,-500.0,0.00015585,2]
[400428203,1767540640361,-500.0,0.00015585,2]
[400428204,1767540640371,-500.0,0.00015585,2]
[400428205,1767540640381,-500.0,0.00015585,2]
[400428206,1767540640392,-500.0,0.00015585,2]
[400428207,1767540640402,-500.0,0.00015585,2]
[400428208,1767540640412,-500.0,0.00015585,2]
[400428209,1767540640422,-500.0,0.00015585,2]
[400428210,1767540640433,-500.0,0.00015585,2]
[400428211,1767540640443,-500.0,0.00015585,2]
[400428212,1767540640454,-500.0,0.00015585,2]
[400428213,1767540640466,-500.0,0.00015585,2]
[400428214,1767540640476,-500.0,0.00015585,2]
[400428215,1767540640486,-500.0,0.00015585,2]
[400428216,1767540640496,-500.0,0.00015585,2]
[400428217,1767540640506,-500.0,0.00015585,2]
[400428218,1767540640516,-500.0,0.00015585,2]
[400428219,1767540640526,-500.0,0.00015585,2]
[400428220,1767540640536,-500.0,0.00015585,2]
[400428221,1767540640546,-500.0,0.00015585,2]
[400428222,1767540640556,-500.0,0.00015585,2]
[400428223,1767540640566,-500.0,0.00015585,2]
[400428224,1767540640576,-500.0,0.00015585,2]
[400428225,1767540640586,-335.43561274,0.00015585,2]
[400428226,1767540640596,-500.0,0.00015585,2]
[400428227,1767540640606,-500.0,0.00015585,2]
[400428228,1767540640617,-500.0,0.00015585,2]
[400428229,1767540640627,-500.0,0.00015585,2]
[400428230,1767540640637,-500.0,0.00015585,2]
[400428231,1767540640646,-500.0,0.00015585,2]
[400428232,1767540640656,-500.0,0.00015585,2]
[400428233,1767540640666,-502.82989421,0.00015585,2]
[400428234,1767540640677,-502.82989421,0.00015585,2]
[400428235,1767540640690,-502.82989421,0.00015585,2]
[400428236,1767540640700,-502.82989421,0.00015585,2]
[400428237,1767540640711,-502.82989421,0.00015585,2]
[400428238,1767540640722,-502.82989421,0.00015585,2]
[400428239,1767540640732,-502.82989421,0.00015585,2]
[400428240,1767540640742,-502.82989421,0.00015585,2]
[400428241,1767540640752,-502.82989421,0.00015585,2]
[400428242,1767540640762,-502.82989421,0.00015585,2]
[400428243,1767540640771,-502.82989421,0.00015585,2]
[400428244,1767540640781,-502.82989421,0.00015585,2]
[400428245,1767540640791,-502.82989421,0.00015585,2]
[400428246,1767540640802,-502.82989421,0.00015585,2]
[400428247,1767540640812,-502.82989421,0.00015585,2]
[400428248,1767540640822,-502.82989421,0.00015585,2]
[400428249,1767540640832,-502.82989421,0.00015585,2]
[400428250,1767540640843,-502.82989421,0.00015585,2]
[400428251,1767540640852,-502.82989421,0.00015585,2]
[400428252,1767540640862,-502.82989421,0.00015585,2]
[400428253,1767540640871,-502.82989421,0.00015585,2]
[400428254,1767540640881,-502.82989421,0.00015585,2]
[400428255,1767540640891,-502.82989421,0.00015585,2]
[400428256,1767540640900,-502.82989421,0.00015585,2]
[400428257,1767540640910,-502.82989421,0.00015585,2]
[400428258,1767540640920,-502.82989421,0.00015585,2]
[400428259,1767540640930,-502.82989421,0.00015585,2]
[400428260,1767540640939,-502.82989421,0.00015585,2]
[400428261,1767540640949,-502.82989421,0.00015585,2]
[400428262,1767540640960,-502.82989421,0.00015585,2]
[400428263,1767540640970,-502.82989421,0.00015585,2]
[400428264,1767540640980,-502.82989421,0.00015585,2]
[400428265,1767540640989,-502.82989421,0.00015585,2]
[400428266,1767540640999,-502.82989421,0.00015585,2]
[400428267,1767540641010,-502.82989421,0.00015585,2]
[400428268,1767540641019,-502.82989421,0.00015585,2]
[400428269,1767540641029,-500.0,0.00015585,2]
[400428270,1767540641039,-500.0,0.00015585,2]
[400428271,1767540641048,-500.0,0.00015585,2]
[400428272,1767540641058,-500.0,0.00015585,2]
[400428273,1767540641067,-500.0,0.00015585,2]
[400428274,1767540641076,-500.0,0.00015585,2]
[400428275,1767540641086,-500.0,0.00015585,2]
[400428276,1767540641095,-500.0,0.00015585,2]
[400428277,1767540641106,-500.0,0.00015585,2]
[400428278,1767540641117,-500.0,0.00015585,2]
[400428279,1767540641127,-500.0,0.00015585,2]
[400428280,1767540641137,-500.0,0.00015585,2]
[400428281,1767540641147,-500.0,0.00015585,2]
[400428282,1767540641376,-500.0,0.00015585,2]
[400428283,1767540641387,-500.0,0.00015585,2]
[400428284,1767540641397,-598.3911908,0.00015585,2]
[400428285,1767540641407,-500.0,0.00015585,2]
[400428286,1767540641416,-500.0,0.00015586,2]
[400428287,1767540641426,-500.0,0.00015586,2]
[400428288,1767540641436,-500.0,0.00015586,2]
[400428289,1767540641445,-500.0,0.00015586,2]
[400428290,1767540641455,-500.0,0.00015586,2]
[400428291,1767540641466,-500.0,0.00015586,2]
[400428292,1767540641476,-500.0,0.00015586,2]
[400428293,1767540641486,-500.0,0.00015586,2]
[400428294,1767540641496,-500.0,0.00015586,2]
[400428295,1767540641506,-500.0,0.00015586,2]
[400428296,1767540641516,-361.82992148,0.00015586,2]
[400428297,1767540641526,-500.0,0.00015586,2]
[400428298,1767540641536,-502.46263758,0.00015586,2]
[400428299,1767540641545,-509.49377493,0.00015586,2]
[400428300,1767540641556,-1000.0,0.00015586,2]
[400428301,1767540641566,-500.0,0.00015586,2]
[400428302,1767540641576,-405.60688363,0.00015586,2]
[400428303,1767540641586,-175.4165907,0.00015586,2]
[400428304,1767540641595,-200.0,0.00015587,2]
[400428305,1767540641605,-195.0,0.00015587,2]
[400428306,1767540641615,-250.0,0.00015588,2]
[400428307,1767540641625,-1000.0,0.0001559,2]
[400428308,1767540641634,-195.0,0.00015594,2]
[400428309,1767540641644,-250.0,0.00015617,2]
[400428310,1767540641654,-200.0,0.00015743,2]
[400428311,1767540641664,-200.0,0.00015743,2]
[400428312,1767540641674,-5580.14915372,0.00015757,2]
[400428313,1767540641685,-2045.05502519,0.00015807,2]
[400428314,1767540641696,-4815.55847473,0.00015842,2]
[400428315,1767540641706,-1581.58,0.00015858,2]
[400428316,1767540641716,-200.0,0.000159,2]
[400428317,1767540641726,-575.1181624,0.0001599,2]
[400428318,1767540641736,-868.01799634,0.00016,2]
[400428319,1767540641746,-259922.67568043,0.00016,4]
[400428320,1767540641757,-5580.14915372,0.00016025,2]
[400428321,1767540641766,-200.0,0.00016059,2]
[400428322,1767540641776,-2875.02,0.00016125,2]
[400428323,1767540641785,-171.6259401,0.0001613,2]
[400428324,1767540641795,-1581.58,0.00016132,2]
[400428325,1767540641805,-1177.58596832,0.00016199,5]
[400428326,1767540641815,-119010.72,0.000162,5]
[400428327,1767540641824,-200.0,0.0001622,2]
[400428328,1767540641834,-5580.14915372,0.00016293,2]
[400428329,1767540641845,-680.53,0.00016343,2]
[400428330,1767540641854,-1581.58,0.00016406,2]
[400428331,1767540641864,-500.0,0.00016438,2]
[400428332,1767540641873,-500.0,0.00016438,2]
[400428333,1767540641883,-500.0,0.00016438,2]
[400428334,1767540641892,-500.0,0.00016438,2]
[400428335,1767540641903,-500.0,0.00016438,2]
[400428336,1767540641912,-500.0,0.00016438,2]
[400428337,1767540641922,-500.0,0.00016438,2]
[400428338,1767540641931,-500.0,0.00016438,2]
[400428339,1767540641941,-500.0,0.00016438,2]
[400428340,1767540641950,-500.0,0.00016438,2]
[400428341,1767540641960,-500.0,0.00016438,2]
[400428342,1767540641970,-500.0,0.00016438,2]
[400428343,1767540641980,-500.0,0.00016438,2]
[400428344,1767540641990,-500.0,0.00016438,2]
[400428345,1767540641999,-500.0,0.00016438,2]
[400428346,1767540642009,-500.0,0.00016438,2]
[400428347,1767540642019,-500.0,0.00016438,2]
[400428348,1767540642029,-500.0,0.00016438,2]
[400428349,1767540642039,-500.0,0.00016438,2]
[400428350,1767540642049,-500.0,0.00016438,2]
[400428351,1767540642059,-500.0,0.00016438,2]
[400428352,1767540642069,-500.0,0.00016438,2]
[400428353,1767540642079,-500.0,0.00016438,2]
[400428354,1767540642089,-500.0,0.00016438,2]
[400428355,1767540642098,-500.0,0.00016438,2]
[400428356,1767540642108,-500.0,0.00016438,2]
[400428357,1767540642118,-500.0,0.00016438,2]
[400428358,1767540642127,-500.0,0.00016438,2]
[400428359,1767540642137,-500.0,0.00016438,2]
[400428360,1767540642147,-500.0,0.00016438,2]
[400428361,1767540642157,-500.0,0.00016438,2]
[400428362,1767540642167,-500.0,0.00016438,2]
[400428363,1767540642177,-500.0,0.00016438,2]
[400428364,1767540642187,-500.0,0.00016438,2]
[400428365,1767540642197,-500.0,0.00016438,2]
[400428366,1767540642207,-500.0,0.00016438,2]
[400428367,1767540642218,-500.0,0.00016438,2]
[400428368,1767540642227,-500.0,0.00016438,2]
[400428369,1767540642237,-500.0,0.00016438,2]
[400428370,1767540642247,-500.0,0.00016438,2]
[400428371,1767540642257,-500.0,0.00016438,2]
[400428372,1767540642267,-500.0,0.00016438,2]
[400428373,1767540642277,-500.0,0.00016438,2]
[400428374,1767540642286,-500.0,0.00016438,2]
[400428375,1767540642296,-500.0,0.00016438,2]
[400428376,1767540642307,-500.0,0.00016438,2]
[400428377,1767540642316,-500.0,0.00016438,2]
[400428378,1767540642326,-500.0,0.00016438,2]
[400428379,1767540642336,-500.0,0.00016438,2]
[400428380,1767540642346,-500.0,0.00016438,2]
[400428381,1767540642355,-500.0,0.00016438,2]
[400428382,1767540642366,-500.0,0.00016438,2]
[400428383,1767540642376,-500.0,0.00016438,2]
[400428384,1767540642386,-500.0,0.00016438,2]
[400428385,1767540642396,-500.0,0.00016438,2]
[400428386,1767540642405,-500.0,0.00016438,2]
[400428387,1767540642415,-500.0,0.00016438,2]
[400428388,1767540642425,-500.0,0.00016438,2]
[400428389,1767540642434,-500.0,0.00016438,2]
[400428390,1767540642444,-500.0,0.00016438,2]
[400428391,1767540642454,-500.0,0.00016438,2]
[400428392,1767540642465,-500.0,0.00016438,2]
[400428393,1767540642475,-500.0,0.00016438,2]
[400428394,1767540642485,-500.0,0.00016438,2]
[400428395,1767540642494,-500.0,0.00016438,2]
[400428396,1767540642505,-500.0,0.00016438,2]
[400428397,1767540642514,-500.0,0.00016438,2]
[400428398,1767540642524,-500.0,0.00016438,2]
[400428399,1767540642534,-500.0,0.00016438,2]
[400428400,1767540642544,-500.0,0.00016438,2]
[400428401,1767540642554,-500.0,0.00016438,2]
[400428402,1767540642563,-500.0,0.00016438,2]
[400428403,1767540642573,-500.0,0.00016438,2]
[400428404,1767540642583,-500.0,0.00016438,2]
[400428405,1767540642593,-500.0,0.00016438,2]
[400428406,1767540642602,-500.0,0.00016438,2]
[400428407,1767540642611,-500.0,0.00016438,2]
[400428408,1767540642622,-500.0,0.00016438,2]
[400428409,1767540642631,-500.0,0.00016438,2]
[400428410,1767540642641,-500.0,0.00016438,2]
[400428411,1767540642651,-500.0,0.00016438,2]
[400428412,1767540642661,-500.0,0.00016438,2]
[400428413,1767540642672,-500.0,0.00016438,2]
[400428414,1767540642684,-500.0,0.00016438,2]
[400428415,1767540642694,-500.0,0.00016438,2]
[400428416,1767540642704,-500.0,0.00016438,2]
[400428417,1767540642715,-500.0,0.00016438,2]
[400428418,1767540642726,-186.55804368,0.00016438,2]
[400428419,1767540642736,-6484.65,0.00016438,2]
[400428420,1767540642746,-286.06478987,0.00016531,2]
[400428421,1767540642758,-5580.14915372,0.00016561,2]
[400428422,1767540642768,-171.62594009,0.00016573,2]
[400428423,1767540642778,-510.0,0.00016611,2]
[400428424,1767540642787,-200.0,0.00016629,2]
[400428425,1767540642796,-207.4,0.00016629,2]
[400428426,1767540642806,-215.0738,0.00016629,2]
[400428427,1767540642815,-274.54039158,0.00016629,2]
[400428428,1767540642825,-1581.58,0.0001668,2]
[400428429,1767540642835,-1318.0,0.00016712,2]
[400428430,1767540642845,-166.67,0.00016772,2]